bitfinex-derivatives/quotes_ETHF0:USTF0_20260315
["timestamp","ask_amount","ask_price","bid_price","bid_amount"]
[1773570118604,0.92214651,2120.0,2119.6,0.91176002]
[1773570118805,0.00464672,2120.1,2119.6,0.91176002]
[1773570119000,11.49164672,2120.1,2119.6,0.91176002]
[1773570120509,0.92214651,2120.0,2119.6,0.91176002]
[1773570120711,0.92214651,2120.0,2119.4,5.89953611]
[1773570120903,0.92214651,2120.0,2119.1,5.89953611]
[1773570121110,0.92214651,2120.0,2119.0,0.90588606]
[1773570121902,0.92214651,2119.9,2119.0,0.91165495]
[1773570122113,1.25673592,2119.9,2119.0,0.00576889]
[1773570122312,0.92214651,2119.8,2119.0,0.00576889]
[1773570126011,0.92214651,2119.7,2119.0,0.00576889]
[1773570126212,0.92214651,2119.5,2119.0,0.00576889]
[1773570127313,0.92214651,2119.5,2118.6,41.70588606]
[1773570127915,0.92214651,2119.5,2118.4,0.90588606]
[1773570128416,0.92214651,2119.5,2118.4,0.91025694]
[1773570128612,0.92214651,2119.3,2118.4,0.91025694]
[1773570135719,11.455,2119.2,2118.4,0.91025694]
[1773570136119,12.37714651,2119.2,2118.4,0.91025694]
[1773570140521,0.92214651,2119.1,2118.4,0.91025694]
[1773570149337,0.92214651,2119.1,2118.4,0.00437088]
[1773570149837,0.92214651,2119.1,2118.0,5.89953611]
[1773570150040,0.92214651,2119.1,2118.1,0.84921867]
[1773570150945,0.92214651,2119.1,2118.1,0.85333266]
[1773570157743,0.87694227,2119.0,2118.1,0.85333266]
[1773570158047,12.31094227,2119.1,2118.1,0.85333266]
[1773570158253,0.87694227,2119.0,2118.1,0.85333266]
[1773570167849,0.87694227,2119.0,2118.2,0.84921867]
[1773570168356,0.87694227,2119.2,2118.4,0.84921867]
[1773570171247,0.87694227,2119.2,2118.5,0.78035658]
[1773570176156,0.87694227,2119.2,2118.6,0.8427579]
[1773570179654,0.87694227,2119.2,2118.5,3.94916079]
[1773570179859,0.87694227,2119.2,2118.5,4.79191869]
[1773570180660,0.87694227,2119.2,2118.6,0.8427579]
[1773570182759,0.78729891,2119.4,2118.6,0.8427579]
[1773570182960,0.78729891,2119.3,2118.6,0.8427579]
[1773570183160,0.78729891,2119.3,2118.8,0.8427579]
[1773570183562,0.78729891,2119.6,2118.9,0.8427579]
[1773570183953,0.78729891,2119.6,2118.7,4.79191869]
[1773570184160,0.78729891,2119.6,2118.8,0.8427579]
[1773570187464,0.78729891,2119.6,2118.9,0.8427579]
[1773570189768,0.78729891,2119.6,2119.0,0.8427579]
[1773570190368,0.78729891,2119.8,2119.0,0.8427579]
[1773570190570,11.433,2119.7,2119.0,0.8427579]
[1773570190770,12.22029891,2119.7,2119.0,0.8427579]
[1773570192372,12.22129891,2119.7,2119.0,0.8427579]
[1773570193965,0.78729891,2119.7,2119.0,0.8427579]
[1773570194171,0.78729891,2120.0,2119.3,0.8427579]
[1773570212092,0.78729891,2120.0,2119.4,0.80211217]
[1773570218092,0.78729891,2120.0,2119.5,0.80211217]
[1773570223196,0.78729891,2120.0,2119.6,0.80211217]
[1773570223401,0.78729891,2120.0,2119.6,0.00386188]
[1773570227703,0.78729891,2120.0,2119.6,0.80597405]
[1773570232010,11.4,2120.0,2119.6,0.80597405]
[1773570232507,11.98572731,2120.0,2119.6,0.80597405]
[1773570233708,0.62338056,2120.1,2119.6,0.80597405]
[1773570233909,0.61873384,2120.0,2119.6,0.80597405]
[1773570238712,0.59189795,2120.3,2119.6,0.80597405]
[1773570238914,0.59189795,2120.2,2119.6,0.00386188]
[1773570239714,0.59734633,2120.2,2119.6,0.00386188]
[1773570240708,0.59734633,2120.2,2119.6,0.68111135]
[1773570241913,0.57588612,2120.2,2119.6,0.68111135]
[1773570242116,0.00544838,2120.2,2119.8,0.67724947]
[1773570242414,0.57043774,2120.4,2119.8,0.67724947]
[1773570243216,0.57450219,2120.4,2119.8,0.67724947]
[1773570243512,0.57450219,2120.4,2119.6,3.95302267]
[1773570244509,0.57450219,2120.4,2119.6,4.63027214]
[1773570244709,0.28459313,2120.2,2119.1,0.73523725]
[1773570244915,3.9559294,2120.2,2119.1,0.73523725]
[1773570245520,0.00359326,2120.1,2119.1,0.73523725]
[1773570245821,0.00359326,2120.1,2119.1,0.74051264]
[1773570246213,11.433,2120.0,2119.1,0.74051264]
[1773570246417,0.08783012,2119.9,2119.1,0.74051264]
[1773570266530,11.436,2119.8,2119.1,0.74051264]
[1773570267328,11.45420139,2119.8,2119.1,0.74051264]
[1773570267827,3.96236633,2120.1,2119.1,0.74051264]
[1773570268025,11.436,2120.0,2119.1,0.74051264]
[1773570268427,11.44673234,2120.0,2119.1,0.74051264]
[1773570269026,0.00878649,2119.9,2119.1,0.74051264]
[1773570271332,11.436,2120.0,2119.1,0.74051264]
[1773570274329,15.38763399,2120.0,2119.1,0.74051264]
[1773570280339,15.38763399,2120.0,2119.2,0.72095187]
[1773570284239,3.95163399,2120.0,2119.2,0.72095187]
[1773570284540,11.453,2119.9,2119.2,0.72095187]
[1773570289845,11.467,2119.8,2119.2,0.72095187]
[1773570290040,3.95163399,2120.1,2119.2,0.72095187]
[1773570290241,11.468,2119.9,2119.2,0.72095187]
[1773570290645,3.95163399,2120.1,2119.2,0.72095187]
[1773570290845,11.47,2120.0,2119.3,0.72024473]
[1773570291038,3.95163399,2120.2,2119.3,0.72024473]
[1773570291241,11.471,2120.1,2119.3,0.72024473]
[1773570302663,3.96135664,2120.4,2119.3,0.72024473]
[1773570302860,11.499,2120.3,2119.3,0.72024473]
[1773570303664,3.96135664,2120.4,2119.3,0.72024473]
[1773570303865,11.501,2120.2,2119.3,0.72024473]
[1773570304064,11.501,2120.2,2119.3,6.64290235]
[1773570304268,11.501,2120.2,2119.4,0.72121846]
[1773570307462,0.00406445,2120.4,2119.4,0.72121846]
[1773570307668,11.509,2120.3,2119.4,0.72121846]
[1773570311865,0.00406445,2120.4,2119.4,0.72121846]
[1773570312062,11.516,2120.2,2119.4,0.72121846]
[1773570319171,11.516,2120.2,2119.5,0.71971083]
[1773570322177,11.516,2120.2,2119.3,0.71876392]
[1773570322379,15.47329219,2120.2,2119.2,6.64130533]
[1773570323381,15.47329219,2120.2,2119.3,0.71864771]
[1773570326270,3.95729219,2120.2,2119.3,0.71864771]
[1773570326475,11.546,2120.1,2119.3,0.71864771]
[1773570337486,3.95729219,2120.3,2119.3,0.71864771]
[1773570337680,11.576,2120.0,2119.3,0.71864771]
[1773570339985,3.95729219,2120.3,2119.3,0.71864771]
[1773570340189,11.582,2120.2,2119.4,0.71344213]
[1773570346686,3.96135664,2120.4,2119.4,0.71344213]
[1773570346890,11.599,2120.3,2119.5,0.71218959]
[1773570350192,0.00406445,2120.4,2119.5,0.71218959]
[1773570350392,11.607,2120.3,2119.5,0.71218959]
[1773570354594,0.00406445,2120.4,2119.5,0.71218959]
[1773570354793,11.618,2120.3,2119.5,0.71218959]
[1773570354988,11.618,2120.3,2119.6,0.71206835]
[1773570355594,0.00406445,2120.4,2119.6,0.71206835]
[1773570355795,11.62506445,2120.4,2119.7,0.71207074]
[1773570359594,11.62506445,2120.4,2119.6,5.92265762]
[1773570359895,11.62506445,2120.4,2119.5,8.11500419]
[1773570359896,11.62506445,2120.4,2119.5,0.71168216]
[1773570360092,11.62506445,2120.4,2119.4,0.71168216]
[1773570360291,11.62506445,2120.4,2119.3,6.63433978]
[1773570362995,11.62506445,2120.4,2119.3,0.71168216]
[1773570363197,15.5789491,2120.4,2119.3,0.71168216]
[1773570364795,3.95388465,2120.3,2119.3,0.71168216]
[1773570367891,3.95388465,2120.1,2119.1,0.71804728]
[1773570373804,3.95388465,2120.1,2119.1,0.71162562]
[1773570376306,4.18967465,2120.2,2119.1,0.71162562]
[1773570378104,3.95388465,2120.2,2119.1,0.71162562]
[1773570378508,11.661,2120.1,2119.1,0.71162562]
[1773570379211,11.662,2120.0,2119.1,0.71162562]
[1773570381710,3.9579491,2120.4,2119.1,0.71162562]
[1773570381911,11.664,2120.0,2119.1,0.71162562]
[1773570382407,3.9579491,2120.4,2119.1,0.71162562]
[1773570382607,11.585,2120.3,2119.1,0.71162562]
[1773570387115,11.585,2120.3,2119.2,0.70342391]
[1773570388220,15.53888465,2120.3,2119.2,0.70342391]
[1773570402128,3.95388465,2120.3,2119.2,0.70342391]
[1773570402326,11.684,2120.2,2119.2,0.70342391]
[1773570403126,11.684,2120.2,2119.3,0.71075324]
[1773570405130,15.63788465,2120.2,2119.3,0.71075324]
[1773570406329,3.95388465,2120.2,2119.3,0.71075324]
[1773570406533,11.702,2120.1,2119.3,0.71075324]
[1773570412230,3.95987216,2120.2,2119.3,0.71075324]
[1773570412424,11.722,2120.1,2119.3,0.71075324]
[1773570421142,11.722,2120.1,2119.3,6.63341086]
[1773570421336,11.722,2120.1,2119.4,0.70893293]
[1773570424747,11.722,2120.1,2119.2,6.63165606]
[1773570425342,11.722,2120.1,2119.3,0.70899844]
[1773570432252,11.79,2120.0,2119.4,0.70924603]
[1773570446262,3.96257289,2120.3,2119.4,0.70924603]
[1773570446458,11.832,2120.2,2119.4,0.70924603]
[1773570455972,3.96257289,2120.3,2119.4,0.70924603]
[1773570456272,11.858,2120.2,2119.4,0.70924603]
[1773570461875,11.858,2120.2,2119.5,0.70839384]
[1773570462372,11.858,2120.2,2119.6,0.70839384]
[1773570466076,0.00406445,2120.4,2119.6,0.70839384]
[1773570466275,11.89,2120.3,2119.6,0.70839384]
[1773570467278,0.00406445,2120.4,2119.6,0.70839384]
[1773570467573,11.893,2120.3,2119.6,0.70839384]
[1773570467775,11.894,2120.3,2119.6,0.70839384]
[1773570476687,0.00406445,2120.4,2119.6,0.70839384]
[1773570476886,0.00406445,2120.4,2119.7,0.70854118]
[1773570477488,0.00406445,2120.4,2119.8,0.70854198]
[1773570485191,1.24667832,2120.7,2119.8,0.70854198]
[1773570485397,1.24667832,2120.7,2120.0,0.70165024]
[1773570486291,1.25158993,2120.7,2120.0,0.70165024]
[1773570493597,0.00491161,2120.7,2120.0,0.70165024]
[1773570517118,0.00491161,2120.7,2120.1,0.70169646]
[1773570548240,3.96064074,2121.0,2120.1,0.70169646]
[1773570549242,3.9662644,2121.0,2120.1,0.70169646]
[1773570553736,3.96064074,2120.9,2120.1,0.70169646]
[1773570576149,3.96064074,2120.8,2120.1,0.70169646]
[1773570576353,3.96064074,2120.8,2119.9,0.73577343]
[1773570576555,3.96064074,2120.7,2119.9,0.73577343]
[1773570576855,11.766,2120.6,2119.9,0.73577343]
[1773570589760,11.766,2120.6,2119.5,5.92265762]
[1773570590061,15.72664074,2120.6,2119.6,0.72705941]
[1773570590359,11.766,2120.6,2119.6,0.72705941]
[1773570590659,15.72664074,2120.6,2119.6,0.72705941]
[1773570591256,11.766,2120.6,2119.6,0.72705941]
[1773570595466,11.812,2120.5,2119.6,0.72705941]
[1773570596767,3.96064074,2120.7,2119.6,0.72705941]
[1773570596966,11.815,2120.6,2119.7,0.72492693]
[1773570602273,11.815,2120.6,2119.8,0.72273749]
[1773570603369,3.96064074,2120.8,2119.8,0.72273749]
[1773570603575,11.824,2120.7,2119.8,0.72273749]
[1773570604772,3.96064074,2120.5,2119.6,0.71996938]
[1773570604973,3.96064074,2120.4,2119.6,0.71996938]
[1773570618175,3.96064074,2120.5,2119.6,0.71996938]
[1773570619680,3.96064074,2120.6,2119.6,0.71996938]
[1773570621984,11.847,2120.5,2119.6,0.71996938]
[1773570624888,11.847,2120.5,2119.7,40.8]
[1773570625089,11.847,2120.5,2119.8,0.72506579]
[1773570632490,11.847,2120.5,2119.6,41.53129226]
[1773570632691,11.847,2120.5,2119.6,0.73129226]
[1773570634097,15.80764074,2120.5,2119.6,0.73129226]
[1773570634294,3.96064074,2120.4,2119.6,0.73129226]
[1773570640090,15.80764074,2120.5,2119.6,0.73129226]
[1773570643101,3.96064074,2120.4,2119.6,0.73129226]
[1773570643704,15.80764074,2120.5,2119.6,0.73129226]
[1773570644207,3.96064074,2120.4,2119.6,0.73129226]
[1773570648510,3.95754213,2120.4,2119.6,0.73129226]
[1773570649811,11.904,2120.3,2119.6,0.73129226]
[1773570655617,11.904,2120.3,2119.5,41.52634223]
[1773570658616,11.904,2120.3,2119.6,0.72425382]
[1773570665114,15.86154213,2120.3,2119.6,0.72425382]
[1773570668026,15.86154213,2120.3,2119.3,5.92265762]
[1773570668330,15.86154213,2120.3,2119.4,0.72248728]
[1773570674626,15.86154213,2120.3,2119.5,41.52185008]
[1773570675023,15.86154213,2120.3,2119.5,0.72185008]
[1773570685527,3.95754213,2120.2,2119.4,41.52037185]
[1773570686636,3.95754213,2120.2,2119.5,0.72038586]
[1773570687735,3.95754213,2120.2,2119.4,0.72040224]
[1773570691835,3.95754213,2120.1,2119.4,0.72040224]
[1773570693035,0.23581,2120.0,2119.0,5.69994468]
[1773570693240,3.95754213,2119.8,2119.0,0.07802978]
[1773570693533,0.38805631,2120.0,2119.1,0.54017304]
[1773570693738,12.043,2119.9,2119.1,0.54017304]
[1773570694139,12.043,2119.9,2119.1,0.54427545]
[1773570698245,12.45352826,2119.9,2119.1,0.54427545]
[1773570701351,12.47252826,2119.9,2119.1,0.54427545]
[1773570707755,0.42085551,2119.8,2119.1,0.54427545]
[1773570713158,0.42085551,2119.8,2119.2,0.57924948]
[1773570715559,12.11686979,2119.9,2119.2,0.57924948]
[1773570718857,0.44124747,2120.1,2119.2,0.57924948]
[1773570719056,0.44124747,2120.1,2119.3,0.57924948]
[1773570723159,0.44124747,2120.1,2119.4,0.57924948]
[1773570735565,0.44124747,2120.1,2119.3,5.91740424]
[1773570735769,0.44124747,2120.1,2119.2,6.49665372]
[1773570736268,0.44124747,2120.1,2119.3,0.57924948]
[1773570765090,0.47644937,2120.0,2119.3,0.57924948]
[1773570768487,0.47644329,2120.1,2119.3,0.57924948]
[1773570779708,0.49301646,2120.0,2119.3,0.57924948]
[1773570780404,0.49301646,2119.8,2119.1,0.56136643]
[1773570780708,0.49362787,2119.6,2119.1,0.00410241]
[1773570780905,12.63462787,2119.6,2119.1,0.00410241]
[1773570781105,0.49362787,2119.5,2119.0,0.55726402]
[1773570781708,0.49362787,2119.5,2118.9,0.55726402]
[1773570782208,0.49962637,2119.5,2118.9,0.56283178]
[1773570782809,0.49962637,2119.5,2118.9,0.00556776]
[1773570783008,0.49962637,2119.5,2118.3,6.79767119]
[1773570783009,0.49962637,2119.5,2118.4,0.55726402]
[1773570783409,0.49962637,2119.5,2118.6,0.55726402]
[1773570783907,0.49962637,2119.5,2118.6,0.56093501]
[1773570785106,0.49962637,2119.5,2118.3,0.55726402]
[1773570785312,0.53462157,2119.4,2118.3,0.55726402]
[1773570785713,0.53462157,2119.4,2118.5,0.55726402]
[1773570786110,0.53462157,2119.3,2118.5,0.00515014]
[1773570786412,0.53462157,2119.3,2118.5,0.56241416]
[1773570787217,0.53462157,2119.3,2118.5,0.00515014]
[1773570787412,0.53462157,2119.3,2118.5,0.56241416]
[1773570790013,12.68962157,2119.2,2118.5,0.56241416]
[1773570792123,0.53462157,2119.1,2118.5,0.56241416]
[1773570795324,0.53462157,2119.1,2118.5,0.00515014]
[1773570797023,0.53462157,2119.1,2118.5,0.56241416]
[1773570800927,0.53462157,2119.0,2118.5,0.56241416]
[1773570802827,12.69030432,2119.2,2118.5,0.56241416]
[1773570803130,0.53530432,2119.1,2118.5,0.56241416]
[1773570807731,12.167,2119.1,2118.5,0.56241416]
[1773570810038,11.92972555,2119.1,2118.5,0.56241416]
[1773570812238,12.71330282,2119.5,2118.6,0.59203635]
[1773570812933,12.71330282,2119.5,2118.6,6.50944059]
[1773570813239,12.71330282,2119.5,2118.7,0.59203635]
[1773570814035,12.1779985,2119.5,2118.7,0.59203635]
[1773570818539,12.71330282,2119.5,2118.7,0.59203635]
[1773570818733,0.53530432,2119.4,2118.7,0.59203635]
[1773570828242,4.4881884,2119.9,2118.7,0.59203635]
[1773570828436,0.53530432,2119.9,2119.0,0.59203635]
[1773570828640,0.53530432,2119.9,2119.2,0.59203635]
[1773570829545,0.53879843,2119.9,2119.2,0.59203635]
[1773570829748,0.53879843,2119.9,2119.3,0.59203635]
[1773570840656,0.00349411,2119.9,2119.3,0.59203635]
[1773570846964,0.56089159,2119.9,2119.3,0.59203635]
[1773570853461,0.55739748,2120.0,2119.3,0.59203635]
[1773570853669,0.55739748,2120.4,2119.3,0.59203635]
[1773570854564,0.56210129,2120.4,2119.3,0.59203635]
[1773570856164,0.55739748,2120.3,2119.3,0.59203635]
[1773570858373,0.55739748,2120.2,2119.4,0.55042601]
[1773570862574,0.55739748,2120.2,2119.5,0.58668736]
[1773570866378,0.55739748,2120.2,2119.6,0.58668736]
[1773570869379,0.55739748,2120.2,2119.7,0.58668736]
[1773570877889,0.59345631,2120.4,2119.7,0.58668736]
[1773570878086,0.00470381,2120.4,2119.7,0.58668736]
[1773570888995,0.5887525,2120.8,2119.7,0.58668736]
[1773570889593,0.5887525,2120.8,2119.8,0.58668736]
[1773570889990,0.59482606,2120.8,2119.8,0.58668736]
[1773570890191,0.59482606,2120.8,2120.0,0.58668736]
[1773570890388,0.59482606,2120.8,2120.0,0.59054379]
[1773570891599,4.54771014,2120.8,2120.0,0.00385643]
[1773570891792,0.55413286,2120.7,2120.0,0.00385643]
[1773570892998,0.55413286,2120.7,2119.8,0.58983609]
[1773570893197,0.55413286,2120.6,2119.8,0.58983609]
[1773570893398,0.55413286,2120.4,2119.8,0.58983609]
[1773570894001,0.55413286,2120.4,2119.8,0.59513048]
[1773570901210,0.55413286,2120.6,2119.8,0.59513048]
[1773570901411,12.057,2120.5,2119.8,0.59513048]
[1773570902809,0.55413286,2120.6,2119.8,0.59513048]
[1773570903009,12.61713286,2120.6,2119.8,0.59513048]
[1773570903209,12.61713286,2120.6,2119.9,0.58983609]
[1773570906406,0.56020642,2120.8,2119.9,0.58983609]
[1773570906612,0.00607356,2120.8,2120.0,6.50724033]
[1773570906814,0.00607356,2120.8,2120.1,0.58983609]
[1773570909517,5.75456453,2121.3,2120.2,0.58983609]
[1773570909715,1.80168045,2121.3,2120.4,0.58983609]
[1773570909918,1.80168045,2121.3,2120.5,0.58983609]
[1773570910718,1.80573796,2121.3,2120.5,0.58983609]
[1773570911116,1.80573796,2121.3,2120.7,0.58983609]
[1773570913720,0.55413286,2121.2,2120.7,0.58983609]
[1773570916224,1.43510889,2121.3,2120.7,0.58983609]
[1773570916519,0.00405751,2121.3,2120.7,0.58983609]
[1773570916725,0.55413286,2121.5,2120.7,0.58983609]
[1773570917625,0.55759787,2121.5,2120.7,0.58983609]
[1773570924533,0.00346501,2121.5,2120.7,0.58983609]
[1773570925333,0.23555,2122.3,2120.9,0.54502457]
[1773570925535,0.53602483,2122.2,2121.1,0.54502457]
[1773570926330,0.53973936,2122.2,2121.1,0.54502457]
[1773570929244,0.53973936,2122.2,2120.9,0.54502457]
[1773570930143,0.53602483,2122.0,2120.9,0.54502457]
[1773570939758,0.53602483,2121.9,2120.9,0.54502457]
[1773570943162,0.53602483,2121.8,2120.9,0.54502457]
[1773570950071,0.53602483,2121.6,2120.7,0.54502457]
[1773570950468,0.53602483,2121.4,2120.7,0.54502457]
[1773570958681,0.54582705,2121.3,2120.7,0.54502457]
[1773570964485,0.54582705,2121.3,2120.5,0.57345386]
[1773570975792,12.56982705,2121.3,2120.5,0.57345386]
[1773570978597,12.57682705,2121.3,2120.5,0.57345386]
[1773570979301,0.54582705,2121.2,2120.5,0.57345386]
[1773570991109,0.54582705,2121.2,2120.4,0.5773053]
[1773571019122,0.55727412,2121.1,2120.4,0.5773053]
[1773571037542,0.55727412,2121.1,2120.3,0.57326769]
[1773571037749,0.55727412,2120.8,2120.2,0.57326769]
[1773571038747,0.55727412,2120.7,2120.2,0.57326769]
[1773571038945,0.56317666,2120.7,2120.2,0.57326769]
[1773571047950,0.56317666,2120.7,2119.9,0.58288629]
[1773571048753,0.00590254,2120.7,2119.9,0.58288629]
[1773571053455,0.00590254,2120.7,2120.0,0.58288629]
[1773571054056,0.00590254,2120.7,2120.1,0.58288629]
[1773571060057,0.56603083,2120.7,2120.1,0.58288629]
[1773571062153,0.56603083,2120.7,2119.8,40.80529439]
[1773571062355,0.56603083,2120.7,2119.9,0.58288629]
[1773571063157,0.56603083,2120.7,2119.8,40.80529439]
[1773571063361,0.56603083,2120.7,2119.8,41.38818068]
[1773571063655,0.56603083,2120.7,2119.9,0.58288629]
[1773571066755,0.56012829,2120.6,2119.9,0.58288629]
[1773571071165,0.58581995,2120.5,2119.9,0.58288629]
[1773571072365,0.58581995,2120.5,2119.8,0.59434899]
[1773571073559,0.55941535,2120.4,2119.8,0.59434899]
[1773571074662,12.159,2120.3,2119.8,0.59434899]
[1773571074963,0.55941535,2120.2,2119.8,0.59434899]
[1773571083476,0.55941535,2120.2,2119.7,0.02469607]
[1773571083676,0.55941535,2120.2,2119.5,0.5890546]
[1773571084577,0.55941535,2120.2,2119.5,0.59278988]
[1773571088578,0.55941535,2120.2,2119.5,0.00373528]
[1773571090380,0.55941535,2120.2,2119.5,0.59278988]
[1773571091180,0.55941535,2120.2,2119.5,0.00373528]
[1773571092675,0.55941535,2120.2,2119.5,0.59278988]
[1773571097781,12.77541535,2120.1,2119.5,0.59278988]
[1773571098586,0.55941535,2120.0,2119.5,0.59278988]
[1773571100485,12.224,2120.1,2119.5,0.59278988]
[1773571100688,0.59321581,2120.2,2119.5,0.59278988]
[1773571100885,0.59321581,2120.2,2119.5,0.00373528]
[1773571103687,12.82830649,2120.1,2119.5,0.00373528]
[1773571104687,0.59196742,2120.3,2119.6,0.00187517]
[1773571106092,0.59196742,2120.3,2119.5,0.00562375]
[1773571108195,0.59196742,2120.3,2119.5,0.00373528]
[1773571108400,0.59252836,2120.2,2119.5,0.00373528]
[1773571114108,12.248,2120.1,2119.5,0.00373528]
[1773571114405,12.85384399,2120.1,2119.5,0.00373528]
[1773571114807,0.60585011,2120.0,2119.5,0.00373528]
[1773571119212,0.60489106,2120.4,2119.5,0.00373528]
[1773571119510,0.60489106,2120.2,2119.5,0.00373528]
[1773571150138,0.60489106,2120.2,2119.5,5.92791483]
[1773571163945,0.60489106,2120.2,2119.5,0.00373528]
[1773571170658,0.60489106,2120.2,2119.5,5.92791483]
[1773571198182,0.60489106,2120.2,2119.6,5.92417955]
[1773571233709,0.60138341,2120.4,2119.6,5.92417955]
[1773571233913,0.60138341,2120.4,2119.7,5.92417955]
[1773571234111,0.60138341,2120.4,2119.6,7.40522444]
[1773571234317,0.5372244,2119.9,2119.3,0.58177704]
[1773571234813,6.46333561,2119.9,2119.3,0.58177704]
[1773571235215,6.46333561,2119.8,2119.3,0.58772507]
[1773571235415,5.92611121,2119.7,2119.3,0.58772507]
[1773571235715,0.5372244,2119.8,2119.3,0.58772507]
[1773571236415,6.62317639,2119.8,2119.3,0.58772507]
[1773571236617,0.5372244,2119.8,2119.3,0.58772507]
[1773571239016,0.5372244,2119.9,2119.3,0.58772507]
[1773571245617,3.9564952,2120.1,2119.3,0.58772507]
[1773571245819,6.08379917,2120.0,2119.3,0.58772507]
[1773571246118,6.08379917,2119.9,2119.3,0.58772507]
[1773571246320,0.5372244,2120.1,2119.5,0.58177704]
[1773571246510,6.60080596,2120.1,2119.5,0.58177704]
[1773571246714,0.5372244,2120.0,2119.5,0.58177704]
[1773571254127,6.60080596,2120.0,2119.5,0.58177704]
[1773571254330,0.5372244,2120.0,2119.5,0.58177704]
[1773571260930,0.5372244,2120.0,2119.3,0.00594803]
[1773571261125,0.73699893,2119.8,2119.1,0.69062981]
[1773571261323,0.73699893,2119.7,2119.1,0.69062981]
[1773571261523,0.73699893,2119.7,2119.2,40.8]
[1773571262017,0.73699893,2119.7,2119.2,40.80564303]
[1773571262331,0.73699893,2119.7,2119.3,0.69062981]
[1773571263231,6.84678707,2119.7,2119.3,0.69062981]
[1773571263431,0.73699893,2119.7,2119.3,0.69062981]
[1773571265226,6.79020755,2119.9,2119.3,0.69062981]
[1773571265431,6.79020755,2119.8,2119.3,0.69062981]
[1773571265631,0.73699893,2119.9,2119.3,0.69062981]
[1773571266432,6.05312343,2120.0,2119.3,0.69062981]
[1773571266632,6.79012236,2120.0,2119.3,0.69062981]
[1773571267331,6.79012236,2120.0,2119.4,0.69062981]
[1773571267928,6.05312343,2119.9,2119.4,0.69062981]
[1773571268232,0.73699893,2120.0,2119.4,0.69062981]
[1773571268734,6.79017087,2120.0,2119.4,0.69062981]
[1773571268933,6.05317194,2119.9,2119.4,0.69062981]
[1773571269136,0.73699893,2120.0,2119.4,0.69062981]
[1773571269635,6.79031125,2120.0,2119.4,0.69062981]
[1773571269934,6.79031125,2119.9,2119.4,0.69062981]
[1773571270127,0.73699893,2119.9,2119.4,0.69062981]
[1773571270732,0.73699893,2119.8,2119.4,0.69062981]
[1773571272640,0.73699893,2119.9,2119.4,0.69062981]
[1773571272934,6.79047558,2119.9,2119.4,0.69062981]
[1773571273239,0.73699893,2119.9,2119.4,0.69062981]
[1773571275441,0.73699893,2119.8,2119.4,0.69062981]
[1773571277145,5.99437104,2120.1,2119.4,0.69062981]
[1773571277340,0.73699893,2120.0,2119.4,0.69062981]
[1773571280551,6.73136997,2120.1,2119.4,0.69062981]
[1773571280852,0.73699893,2120.0,2119.4,0.69062981]
[1773571285353,5.99437104,2120.1,2119.4,0.69062981]
[1773571285554,0.66699898,2120.2,2119.4,0.69062981]
[1773571285758,6.64981613,2120.2,2119.4,0.69062981]
[1773571286053,0.66699898,2120.1,2119.4,0.69062981]
[1773571292367,6.78597088,2120.5,2119.4,0.69062981]
[1773571292567,0.66699898,2120.2,2119.4,0.69062981]
[1773571309081,8.98e-06,2120.2,2119.6,0.66539425]
[1773571310273,0.66699898,2120.4,2119.6,0.66539425]
[1773571320189,0.66699898,2120.4,2119.8,0.62166659]
[1773571322991,0.66699898,2120.4,2119.9,41.42166659]
[1773571327494,0.66699898,2120.4,2120.0,0.62166659]
[1773571327896,0.61721937,2120.3,2120.0,0.62166659]
[1773571328094,0.37018365,2120.5,2120.0,0.62166659]
[1773571330299,5.84713134,2120.6,2120.0,0.62166659]
[1773571330495,0.3861824,2120.5,2120.0,0.62166659]
[1773571335001,6.23331374,2120.5,2120.0,0.62166659]
[1773571335207,0.3861824,2120.5,2120.0,0.62166659]
[1773571353424,0.33242938,2120.6,2120.0,0.62166659]
[1773571373245,0.31698478,2120.5,2119.9,41.37024888]
[1773571373745,0.31698478,2120.5,2120.0,0.57024888]
[1773571380745,0.31698478,2120.5,2119.9,41.37024888]
[1773571384150,0.31698478,2120.5,2119.7,0.57024888]
[1773571384451,0.31558324,2120.4,2119.7,0.57024888]
[1773571384948,0.31555916,2120.3,2119.7,0.57024888]
[1773571385149,0.31555916,2120.2,2119.9,0.57024888]
[1773571386145,0.31555916,2120.2,2119.8,40.8]
[1773571386451,0.31555916,2120.2,2119.8,41.37024888]
[1773571387150,0.31555916,2120.2,2119.9,0.57024888]
[1773571391853,0.30938072,2120.4,2119.9,0.57024888]
[1773571392455,5.85126107,2120.4,2119.9,0.57024888]
[1773571392654,4.26804163,2120.6,2119.9,0.57024888]
[1773571392855,10.11517111,2120.6,2119.9,0.57024888]
[1773571393452,6.1565102,2120.6,2119.9,0.57024888]
[1773571396856,0.30967359,2120.5,2120.1,0.57024888]
[1773571398458,0.30967351,2120.4,2120.1,0.57024888]
[1773571398758,0.30967351,2120.4,2120.0,0.57024888]
[1773571411974,5.84712948,2120.5,2120.0,0.57024888]
[1773571412176,0.3190554,2120.4,2120.0,0.57024888]
[1773571413177,6.16618488,2120.4,2120.0,0.57024888]
[1773571413376,5.84712948,2120.3,2120.0,0.57024888]
[1773571413583,0.3190554,2120.4,2120.0,0.57024888]
[1773571413977,6.1735862,2120.4,2120.0,0.57024888]
[1773571414276,5.8545308,2120.3,2120.0,0.57024888]
[1773571414476,0.3190554,2120.4,2120.0,0.57024888]
[1773571414879,6.17360722,2120.4,2120.0,0.57024888]
[1773571415077,5.85455182,2120.3,2120.0,0.57024888]
[1773571415278,0.3190554,2120.4,2120.0,0.57024888]
[1773571415772,6.17360166,2120.4,2120.0,0.57024888]
[1773571415978,5.85454626,2120.3,2120.0,0.57024888]
[1773571416179,0.3190554,2120.4,2120.0,0.57024888]
[1773571416578,6.17366205,2120.4,2120.0,0.57024888]
[1773571416774,5.85460665,2120.3,2120.0,0.57024888]
[1773571417081,0.3190554,2120.4,2120.0,0.57024888]
[1773571417578,6.17366205,2120.4,2120.0,0.57024888]
[1773571417872,0.3190554,2120.4,2120.0,0.57024888]
[1773571418079,0.32670069,2120.3,2120.0,0.57024888]
[1773571420083,5.85492861,2120.4,2120.0,0.57024888]
[1773571420288,6.18220006,2120.4,2120.0,0.57024888]
[1773571420778,0.32727325,2120.2,2119.8,0.54455601]
[1773571420976,6.18220186,2120.2,2119.8,0.54455601]
[1773571421177,0.32727325,2120.2,2119.8,0.54455601]
[1773571422182,5.85523763,2120.3,2119.8,0.54455601]
[1773571422383,5.6181341,2120.2,2119.8,0.54455601]
[1773571422585,16.75317378,2120.5,2119.8,0.54455601]
[1773571424285,12.79451287,2120.5,2119.8,0.54455601]
[1773571424686,16.75317378,2120.5,2119.8,0.54455601]
[1773571424887,12.79451287,2120.5,2119.8,0.54455601]
[1773571425189,16.75317378,2120.5,2119.8,0.54455601]
[1773571426888,16.75317378,2120.5,2119.9,40.8]
[1773571427089,16.75317378,2120.5,2120.0,0.54455601]
[1773571429990,0.55694253,2120.4,2120.0,0.54455601]
[1773571433084,3.95866091,2120.5,2120.0,0.54455601]